bitfinex/quotes_ETHUSD_20240824
["timestamp","ask_amount","ask_price","bid_price","bid_amount"]
[1724480675091,5.97000723,2762.9,2762.3,2.2951]
[1724480675254,3.61951,2762.8,2762.7,0.05580088]
[1724480675456,3.61967,2762.7,2762.3,2.2951]
[1724480675662,7.23941,2762.7,2762.4,0.05587783]
[1724480676155,3.61967,2762.7,2762.4,0.05587783]
[1724480680579,5.13911955,2762.9,2762.4,0.05587783]
[1724480680580,1.51966955,2762.8,2762.4,0.05587783]
[1724480680738,1.51966955,2762.8,2762.4,1.31501961]
[1724480681077,8.75860955,2762.9,2762.4,1.31501961]
[1724480681249,8.75858955,2762.9,2762.4,1.31501961]
[1724480681443,1.51966955,2762.8,2762.4,1.31501961]
[1724480683070,1.51966955,2762.8,2762.5,2.3271]
[1724480683238,1.51966955,2762.8,2762.6,0.05586251]
[1724480689295,1.51966955,2762.7,2762.6,0.05586251]
[1724480689605,5.51951367,2762.9,2762.6,0.05586251]
[1724480689606,1.51966955,2762.8,2762.6,0.05586251]
[1724480691184,1.51966955,2762.7,2762.6,0.05586251]
[1724480692284,1.51966955,2762.8,2762.6,0.05586251]
[1724480693605,1.51966955,2762.7,2762.6,0.05586251]
[1724480693813,1.51966955,2762.7,2762.6,0.78207394]
[1724480694017,1.51966955,2762.8,2762.7,2.271]
[1724480694375,1.51966955,2762.8,2762.7,2.3268009]
[1724480694801,1.51966955,2762.9,2762.7,2.3268009]
[1724480695079,1.51966955,2762.9,2762.8,0.66727023]
[1724480695279,1.51966955,2762.9,2762.8,0.72304549]
[1724480695886,1.51966955,2763.0,2762.8,0.72304549]
[1724480696077,1.51966955,2762.9,2762.8,0.72304549]
[1724480696834,1.51966955,2763.0,2762.9,2.271]
[1724480696995,1.51966955,2763.0,2762.9,2.93235555]
[1724480697186,1.51966955,2763.0,2762.9,2.98810516]
[1724480697518,1.51966955,2763.1,2762.9,2.98810516]
[1724480697682,1.51966955,2763.1,2762.9,2.32674961]
[1724480697877,1.51966955,2763.0,2762.9,2.32674961]
[1724480698494,1.51966955,2763.2,2762.9,2.32674961]
[1724480699917,1.51966955,2763.2,2762.9,5.94612961]
[1724480700121,1.51966955,2763.2,2762.9,2.32674961]
[1724480700627,1.51966955,2763.3,2762.9,2.32674961]
[1724480700783,1.51966955,2763.2,2762.9,2.32674961]
[1724480700983,1.51966955,2763.2,2762.9,3.11529079]
[1724480701219,1.51966955,2763.3,2762.9,3.11529079]
[1724480703525,5.13852955,2763.3,2762.9,3.11529079]
[1724480703724,5.13852955,2763.3,2762.9,2.32674961]
[1724480704536,1.8999844,2763.4,2762.9,2.32674961]
[1724480705051,5.13834955,2763.5,2762.9,2.32674961]
[1724480705206,3.61868,2763.5,2762.9,2.32674961]
[1724480705799,1.51966955,2763.6,2763.1,2.4451]
[1724480706333,5.13813955,2763.6,2763.2,0.05515388]
[1724480706694,1.51966955,2763.6,2763.2,0.05515388]
[1724480707134,12.58803955,2763.7,2763.2,0.05515388]
[1724480707433,14.75285314,2763.7,2763.2,0.05515388]
[1724480707838,18.37131314,2763.7,2763.2,0.05515388]
[1724480708294,14.75285314,2763.7,2763.2,0.05515388]
[1724480708924,10.92130314,2763.7,2763.2,0.05515388]
[1724480709129,7.30285314,2763.7,2763.2,0.05515388]
[1724480709487,10.92129314,2763.7,2763.2,0.05515388]
[1724480709677,8.75647955,2763.7,2763.2,0.05515388]
[1724480709846,3.61847,2763.6,2763.2,0.05515388]
[1724480710042,5.13803955,2763.7,2763.2,0.05515388]
[1724480710533,3.61837,2763.7,2763.2,0.05515388]
[1724480710869,5.13803955,2763.7,2763.2,0.05515388]
[1724480711566,8.75646955,2763.7,2763.2,0.05515388]
[1724480711762,3.61847,2763.6,2763.2,0.05515388]
[1724480712263,5.13794955,2763.8,2763.2,1.0362487]
[1724480712566,3.61841,2763.7,2763.2,1.0362487]
[1724480713826,6.40993148,2763.8,2763.2,1.0362487]
[1724480713827,3.6185,2763.6,2763.2,1.0362487]
[1724480714031,3.6185,2763.6,2763.2,0.05515388]
[1724480719726,3.61828,2763.8,2763.4,2.3557]
[1724480720156,3.61828,2763.8,2763.5,0.05495888]
[1724480720341,3.61809,2763.9,2763.5,0.05495888]
[1724480723282,3.61809,2763.9,2763.5,0.65789877]
[1724480723954,3.61821,2763.8,2763.5,0.65789877]
[1724480724162,3.61821,2763.8,2763.5,0.05495888]
[1724480724649,7.2365,2763.8,2763.5,0.05495888]
[1724480725280,3.61821,2763.8,2763.5,0.05495888]
[1724480728179,7.23651,2763.8,2763.5,0.05495888]
[1724480728608,3.61846,2763.6,2763.5,0.05495888]
[1724480729119,3.61846,2763.6,2763.0,3.61915]
[1724480729271,3.61846,2763.6,2763.0,4.41056022]
[1724480729676,3.61846,2763.6,2763.1,0.05480979]
[1724480731886,3.61834,2763.7,2763.1,3.67391979]
[1724480732527,3.61834,2763.7,2763.2,2.3557]
[1724480732686,3.61834,2763.7,2763.3,0.05475851]
[1724480732888,3.61834,2763.7,2763.2,2.3557]
[1724480733107,3.61834,2763.7,2763.3,0.05475851]
[1724480733301,3.61834,2763.7,2763.2,7.14040522]
[1724480733506,3.61834,2763.7,2763.3,0.05475851]
[1724480733701,3.61834,2763.7,2763.2,7.14040522]
[1724480733928,3.61834,2763.7,2763.3,0.05475851]
[1724480734103,3.61812,2763.9,2763.4,2.3557]
[1724480734305,3.61812,2763.9,2763.5,0.05470725]
[1724480738298,7.23627,2763.9,2763.5,0.05470725]
[1724480738496,3.61812,2763.9,2763.5,0.05470725]
[1724480739439,3.61846,2763.6,2763.5,0.05470725]
[1724480739622,3.61846,2763.6,2763.1,2.4764]
[1724480739935,3.61846,2763.6,2763.1,3.21315619]
[1724480740143,3.61834,2763.7,2763.2,0.05324745]
[1724480740297,3.61834,2763.7,2763.2,3.67220745]
[1724480740636,3.90836955,2763.8,2763.3,2.4764]
[1724480740637,3.61832,2763.8,2763.3,2.4764]
[1724480740935,3.61832,2763.8,2763.4,0.05319618]
[1724480743431,5.13777955,2763.9,2763.4,3.67188618]
[1724480744242,3.61811,2763.9,2763.4,3.67188618]
[1724480744415,5.13777955,2763.9,2763.4,3.67188618]
[1724480745436,3.61811,2763.9,2763.4,3.67188618]
[1724480745621,5.13777955,2763.9,2763.5,0.68368225]
[1724480745819,5.13777955,2763.9,2763.5,0.7368528]
[1724480746933,3.61811,2763.9,2763.5,0.7368528]
[1724480747339,5.13777955,2763.9,2763.5,0.7368528]
[1724480747855,3.61811,2763.9,2763.5,0.7368528]
[1724480748344,5.13777955,2763.9,2763.5,0.7368528]
[1724480752147,5.13777955,2763.9,2763.5,0.05317055]
[1724480752351,5.13777955,2763.9,2763.3,6.78376636]
[1724480752653,5.13777955,2763.9,2763.4,0.05319618]
[1724480753354,5.13777955,2763.9,2763.4,3.67186618]
[1724480753555,5.13777955,2763.9,2763.5,2.4764]
[1724480753852,5.13777955,2763.9,2763.5,3.16008025]
[1724480754026,5.13777955,2763.9,2763.6,0.05314492]
[1724480755023,8.75593955,2763.9,2763.6,0.05314492]
[1724480755218,5.13777955,2763.9,2763.6,0.05314492]
[1724480755948,1.51966955,2763.9,2763.8,1.27198193]
[1724480756122,0.131324,2764.2,2763.9,2.4764]
[1724480756322,0.131324,2764.2,2763.8,0.79508536]
[1724480756546,7.23588,2764.0,2763.9,0.05126571]
[1724480756737,7.23588,2764.0,2763.4,2.4764]
[1724480756738,3.61819,2763.9,2763.4,2.4764]
[1724480756923,3.61823,2763.8,2763.5,0.05135794]
[1724480757357,3.61794,2764.0,2763.5,0.05135794]
[1724480757358,3.6181,2763.9,2763.5,0.05135794]
[1724480757720,2.3887,2763.8,2763.5,0.05135794]
[1724480757918,3.61894,2763.3,2762.8,2.4764]
[1724480759753,3.61894,2763.3,2762.8,6.09587]
[1724480760942,6.00734,2763.5,2762.9,3.61927]
[1724480761147,3.61874,2763.4,2762.9,3.61927]
[1724480762496,3.61874,2763.4,2763.0,0.04492185]
[1724480763962,3.61874,2763.4,2763.1,0.04489621]
[1724480764172,4.70854619,2763.4,2762.8,2.4764]
[1724480764493,3.61874,2763.4,2763.2,0.04487058]
[1724480764691,3.61874,2763.4,2762.8,2.4764]
[1724480764692,3.61887,2763.3,2762.8,2.4764]
[1724480765055,4.89117193,2763.1,2762.5,2.4608]
[1724480765912,3.6194,2762.9,2762.4,3.61994]
[1724480768705,4.89117193,2763.1,2762.4,3.62003]
[1724480768898,3.61919,2763.1,2762.4,5.98931412]
[1724480769186,7.23841,2763.1,2762.4,5.98931412]
[1724480769387,3.61926,2763.0,2762.4,5.98931412]
[1724480771057,9.9263,2763.2,2762.6,3.61968]
[1724480771297,7.45,2763.2,2762.6,7.23938]
[1724480771476,7.45,2763.2,2762.7,3.61963]
[1724480771675,7.45,2763.2,2762.9,2.4608]
[1724480774361,3.61888,2763.3,2762.9,2.4608]
[1724480776100,3.619,2763.2,2762.7,6.08043]
[1724480776458,3.61915,2763.1,2762.6,1.20694641]
[1724480776667,6.09545,2763.1,2762.4,3.0]
[1724480777380,6.09545,2763.1,2762.5,0.04463224]
[1724480777583,3.61938,2762.9,2762.5,0.04463224]
[1724480777964,3.61953,2762.8,2762.5,0.04463224]
[1724480778603,3.61953,2762.8,2762.5,0.03463224]
[1724480781274,3.61972,2762.7,2762.1,2.4403]
[1724480781472,3.61972,2762.7,2762.6,0.04147263]
[1724480781728,3.61972,2762.7,2762.1,6.06064]
[1724480781872,3.61972,2762.7,2762.6,0.04147263]
[1724480782072,3.61978,2762.6,2762.1,6.06064]
[1724480782323,3.61978,2762.6,2762.1,5.01566619]
[1724480782527,3.61999,2762.5,2761.9,6.06094]
[1724480782983,3.61999,2762.5,2761.9,6.0609]
[1724480783901,2.3392,2762.4,2761.9,6.0609]
[1724480786218,2.3392,2762.4,2762.0,0.03787833]
[1724480787884,5.95925,2762.4,2762.0,0.03787833]
[1724480788080,3.62017,2762.3,2762.0,0.03787833]
[1724480788285,5.95925,2762.4,2762.0,0.03787833]
[1724480788286,5.95932,2762.4,2762.0,0.03787833]
[1724480788496,5.95932,2762.4,2761.7,6.06114]
[1724480788497,3.62025,2762.3,2761.7,6.06114]
[1724480788700,3.62025,2762.3,2762.1,0.03658506]
[1724480788895,3.62025,2762.3,2761.7,6.06114]
[1724480789512,3.62025,2762.3,2761.8,0.03542885]
[1724480789893,3.62025,2762.3,2761.7,6.06114]
[1724480790226,3.62025,2762.3,2761.8,0.03419377]
[1724480790620,3.62025,2762.3,2761.7,6.06114]
[1724480790828,3.62025,2762.3,2761.9,0.03416811]
[1724480791125,3.62025,2762.3,2761.8,0.03419377]
[1724480791317,3.62025,2762.3,2762.0,0.03420404]
[1724480791498,3.62025,2762.3,2761.9,0.0342297]
[1724480791709,3.62025,2762.3,2762.1,0.03417838]
[1724480791913,3.62025,2762.3,2762.0,0.03420404]
[1724480792233,3.62025,2762.3,2762.2,0.03415272]
[1724480792424,4.77771821,2762.3,2762.1,0.03442468]
[1724480792618,4.77771821,2762.3,2762.2,0.03439903]
[1724480793001,4.77771821,2762.3,2761.7,3.62084]
[1724480793217,3.62025,2762.3,2762.2,0.03439903]
[1724480793505,3.62025,2762.3,2761.7,3.62084]
[1724480793711,3.62025,2762.3,2762.2,0.03439903]
[1724480793935,3.62025,2762.3,2761.7,3.62084]
[1724480794140,3.62025,2762.3,2762.2,0.03439903]
[1724480794436,4.70540519,2762.3,2762.2,0.03439903]
[1724480794635,4.70540519,2762.3,2761.7,7.24171]
[1724480794837,3.62025,2762.3,2762.2,0.03440929]
[1724480795253,3.62025,2762.3,2761.7,3.62084]
[1724480795405,3.62025,2762.3,2762.2,0.03439389]
[1724480795733,3.62025,2762.3,2761.8,3.62082]
[1724480795919,3.62025,2762.3,2762.2,0.03439389]
[1724480796126,3.62025,2762.3,2761.8,3.62082]
[1724480796329,3.62025,2762.3,2762.2,0.03439389]
[1724480796544,3.62025,2762.3,2761.8,3.62082]
[1724480797129,3.62025,2762.3,2761.9,0.03447087]
[1724480797947,2.3392,2762.4,2761.9,3.65515087]
[1724480798154,5.9593,2762.4,2761.9,3.65515087]
[1724480799459,3.62017,2762.3,2761.9,0.03447087]
[1724480799615,2.3392,2762.4,2761.9,0.03447087]
[1724480799814,5.95927,2762.4,2761.9,3.65513087]
[1724480807537,5.95927,2762.4,2761.9,3.66467643]
[1724480808140,3.62007,2762.4,2761.9,3.66467643]
[1724480811638,7.29986193,2762.3,2761.9,0.04401643]
[1724480816960,3.67968193,2762.3,2761.9,0.04401643]
[1724480817261,2.4077,2762.3,2761.9,0.04401643]
[1724480817927,3.62007,2762.4,2761.9,0.04401643]
[1724480818329,7.24019,2762.4,2761.9,0.04401643]
[1724480819775,7.24018,2762.4,2761.9,0.04401643]
[1724480820966,3.62007,2762.4,2761.9,0.04401643]
[1724480821671,7.24018,2762.4,2761.9,0.04401643]
[1724480822075,1.89739433,2762.7,2762.1,2.3893]
[1724480822076,6.78903626,2762.7,2762.1,2.3893]
[1724480822279,10.40877626,2762.7,2762.1,6.00972]
[1724480822587,4.89164193,2762.7,2762.2,0.04396047]
[1724480822997,3.61978,2762.6,2762.2,0.04396047]
[1724480824974,3.61993,2762.5,2762.2,0.04396047]
[1724480827396,7.23992,2762.5,2762.2,0.04396047]
[1724480830196,3.61993,2762.5,2762.2,0.04396047]
[1724480831297,3.62007,2762.4,2762.2,0.04396047]
[1724480838171,7.24019,2762.4,2762.2,0.04396047]
[1724480838367,3.62007,2762.4,2762.2,0.04396047]
[1724480845095,7.24019,2762.4,2762.2,0.04396047]
[1724480845311,3.62007,2762.4,2762.2,0.04396047]
[1724480846083,7.24019,2762.4,2762.2,0.04396047]
[1724480846813,3.62007,2762.4,2762.2,0.04396047]
[1724480847387,5.52168695,2762.5,2762.2,0.04396047]
[1724480847610,3.61993,2762.5,2762.2,0.04396047]
[1724480852287,8.8231274,2762.5,2762.2,0.04396047]
[1724480852493,8.8231274,2762.5,2761.9,6.0305]
[1724480852688,7.78178201,2762.5,2762.3,0.04817949]
[1724480852975,7.78178201,2762.5,2761.9,2.4099]
[1724480852976,3.62024,2762.3,2761.9,2.4099]
[1724480853214,3.62024,2762.3,2761.7,6.03077]
[1724480853215,1.27198193,2762.2,2761.7,6.03077]
[1724480853514,3.62024,2762.3,2761.7,6.03077]
[1724480853884,3.62024,2762.3,2761.7,9.65164]
[1724480854228,3.62024,2762.3,2761.8,3.62082]
[1724480854783,11.40183201,2762.5,2761.9,2.4099]
[1724480855117,3.62007,2762.4,2761.9,2.4099]
[1724480856108,5.52173858,2762.4,2761.9,2.4099]
[1724480858037,3.62007,2762.4,2761.9,2.4099]
[1724480858194,5.52163858,2762.5,2761.9,6.03058]
[1724480858399,3.62006,2762.4,2761.9,6.03058]
[1724480860041,4.89204193,2762.4,2761.9,6.03058]
[1724480860754,1.90166858,2762.6,2762.1,2.2659]
[1724480860954,1.90166858,2762.6,2762.2,3.62021]
[1724480861123,1.90166858,2762.7,2762.2,3.62021]
[1724480861752,1.90166858,2762.6,2762.3,3.62015]
[1724480862821,1.90166858,2762.7,2762.3,3.62015]
[1724480864716,1.90160005,2762.7,2762.3,3.62015]
[1724480865356,1.90151077,2762.7,2762.3,3.62015]
[1724480868748,1.90151077,2762.7,2762.2,3.62029]
[1724480869930,1.90128246,2762.7,2762.2,3.62029]
[1724480871359,1.90128246,2762.7,2762.2,3.62022]
[1724480873265,7.45,2762.8,2762.4,3.62003]
[1724480873428,9.35128246,2762.8,2762.5,3.6199]
[1724480873632,7.45,2762.8,2762.4,3.61995]
[1724480875639,1.27198193,2762.9,2762.4,3.61995]
[1724480875947,1.27198193,2762.7,2762.3,2.3151]
[1724480878772,1.27198193,2762.9,2762.3,2.3151]
[1724480878969,1.27198193,2762.9,2762.4,3.62002]
[1724480880177,3.61937,2763.0,2762.4,3.62002]
[1724480883279,3.6194,2762.9,2762.4,3.62002]
[1724480884262,3.61925,2763.0,2762.5,2.4815]
[1724480885885,1.27198193,2762.7,2762.2,2.4815]
[1724480886055,7.30350193,2762.7,2762.2,2.4815]
[1724480886746,3.68378193,2762.7,2762.2,6.10171]
[1724480888051,3.68378193,2762.7,2762.2,9.72193]
[1724480888248,3.61952,2762.8,2762.3,3.62014]
[1724480889149,1.27198193,2762.9,2762.3,3.62014]
[1724480890365,4.89138193,2762.9,2762.3,3.62014]
[1724480891092,2.3154,2762.8,2762.3,3.62014]
[1724480891949,4.89138193,2762.9,2762.3,3.62014]
[1724480896286,4.89138193,2762.9,2762.3,5.0195443]
[1724480896950,4.89138193,2762.9,2762.4,3.62003]
[1724480897478,4.89138193,2762.9,2762.4,6.00213]
[1724480900184,1.27198193,2762.9,2762.4,6.00213]
[1724480901013,1.27198193,2762.9,2762.4,9.62208]
[1724480901513,1.27198193,2762.9,2762.4,6.00205]
[1724480903684,4.89137193,2762.9,2762.4,6.00205]
[1724480905021,1.27198193,2762.9,2762.4,6.00205]
[1724480905207,1.27198193,2762.9,2762.4,6.964277]
[1724480905880,1.27198193,2762.9,2762.4,10.584247]
[1724480906085,1.27198193,2762.9,2762.4,6.964277]
[1724480906816,1.27198193,2762.9,2762.4,10.584237]
[1724480907022,1.27198193,2762.9,2762.4,6.964277]
[1724480909348,5.51832094,2763.1,2762.6,3.61973]
[1724480909529,1.27198193,2763.0,2762.6,3.61973]
[1724480910242,1.27198193,2763.0,2762.4,6.964247]
[1724480910540,1.27198193,2763.0,2762.5,3.61989]
[1724480911154,1.89915094,2763.2,2763.1,9.69414]
[1724480911364,1.27198193,2763.7,2763.3,3.61875]
[1724480911507,1.27198193,2763.5,2762.9,3.61928]
[1724480911707,1.27198193,2763.5,2763.0,6.61924]
[1724480911920,1.27198193,2763.5,2763.0,3.0]
[1724480912255,1.27198193,2763.5,2763.0,3.61924]
[1724480912781,1.76102812,2763.5,2762.8,6.0753]
[1724480913071,1.27198193,2763.3,2762.8,9.69471]
[1724480913276,1.27198193,2763.3,2762.8,6.0753]
[1724480914267,5.98263,2763.4,2762.8,6.0753]
[1724480916244,5.98263,2763.4,2762.6,3.61968]
[1724480916245,1.27198193,2763.1,2762.6,3.61968]
[1724480916466,2.3638,2763.0,2762.4,3.61998]
[1724480916642,2.3638,2763.0,2762.4,3.61994]
[1724480917023,5.98313,2763.0,2762.4,3.61994]
[1724480917222,1.08742519,2762.9,2762.4,3.61994]
[1724480917425,3.61964,2762.7,2762.2,3.62022]
[1724480919627,3.61964,2762.7,2762.1,3.62034]
[1724480919840,2.3986,2762.6,2762.1,3.62034]
[1724480920061,6.01838,2762.6,2762.0,3.62045]
[1724480922389,7.10938019,2762.6,2762.0,3.62045]
[1724480925798,3.61991,2762.5,2762.0,3.62045]
[1724480926341,3.61991,2762.5,2761.8,8.51348193]
[1724480926844,3.61991,2762.5,2761.9,3.62067]
[1724480928393,3.61991,2762.5,2761.7,2.4917]
[1724480928394,1.27198193,2762.3,2761.7,2.4917]
[1724480928699,4.10942919,2762.3,2761.7,5.4917]
[1724480928908,4.10942919,2762.3,2761.7,9.11258]
[1724480929695,4.10942919,2762.3,2761.7,10.38456193]
[1724480932014,4.10942919,2762.3,2761.8,3.6208]
[1724480932168,3.62024,2762.3,2761.8,3.6208]
[1724480933885,2.3986,2762.4,2761.8,3.6208]
[1724480934098,6.01865,2762.4,2761.8,3.6208]
[1724480935139,6.01865,2762.4,2761.8,7.24155]
[1724480935436,6.01865,2762.4,2761.9,1.27198193]
[1724480935437,2.3986,2762.4,2761.9,1.27198193]
[1724480935742,2.3986,2762.4,2762.0,0.48927319]
[1724480935894,2.3986,2762.4,2762.0,3.62044]
[1724480936519,2.3986,2762.4,2762.0,7.24091]
[1724480936724,2.3986,2762.4,2762.1,3.62042]
[1724480938494,2.3986,2762.4,2761.9,8.51320193]
[1724480938792,2.3986,2762.4,2762.0,3.62053]
[1724480938993,2.3986,2762.4,2762.0,4.47183919]
[1724480940135,2.3986,2762.4,2762.0,0.85130919]
[1724480941138,2.3573,2762.7,2762.3,1.27198193]
[1724480941340,9.34678148,2762.9,2762.5,8.51168193]
[1724480941341,7.45,2762.9,2762.5,8.51168193]
[1724480941653,2.3573,2763.0,2762.6,3.61977]
[1724480941966,19.66,2763.2,2762.6,2.4338]
[1724480942183,9.59518,2763.3,2762.6,6.42404819]
[1724480942354,5.97623,2763.3,2762.7,3.61962]
[1724480942551,3.61899,2763.2,2762.7,3.61962]
[1724480944041,5.97623,2763.3,2762.7,3.61962]
[1724480944276,3.61901,2763.2,2762.7,3.61962]
[1724480944586,3.61914,2763.1,2762.6,3.61977]
[1724480945236,3.61927,2763.0,2762.4,6.05377]
[1724480945689,2.3573,2762.9,2762.4,6.05377]
[1724480945878,2.3573,2762.9,2762.4,3.61997]
[1724480946234,5.97669,2762.9,2762.4,3.61997]
[1724480949169,2.3573,2762.9,2762.4,3.61997]
[1724480950102,2.3573,2762.9,2762.4,4.89195193]
[1724480951248,2.3573,2762.9,2762.4,6.04317212]
[1724480951485,2.3573,2762.9,2762.4,6.04315212]
[1724480951684,3.61913,2763.1,2762.5,2.4338]
[1724480953242,3.61913,2763.1,2762.6,3.61976]
[1724480954585,3.61913,2763.1,2762.6,3.61850673]
[1724480955089,14.10577808,2763.6,2762.4,6.04315212]
[1724480955090,3.61827,2763.8,2763.3,3.61884]
[1724480955381,7.45,2763.9,2763.3,4.89082193]
[1724480956284,3.61822,2763.8,2763.3,4.89082193]
[1724480959056,3.61822,2763.8,2763.3,1.27198193]
[1724480962868,3.61822,2763.8,2763.3,4.89083193]
[1724480966505,3.61874,2763.4,2762.8,3.6195]
[1724480966708,3.61874,2763.4,2762.7,8.89499]
[1724480966909,3.61874,2763.4,2762.8,3.61943]
[1724480967470,8.50936193,2763.5,2762.8,3.61943]
[1724480967671,8.50936193,2763.5,2762.9,3.61937]
[1724480967672,5.97289812,2763.5,2762.9,3.61937]
[1724480968075,5.97286812,2763.5,2762.7,8.89499]
[1724480968397,5.93196,2763.3,2762.7,8.89496]
[1724480968601,5.93196,2763.3,2762.7,12.51449]
[1724480968802,5.93196,2763.3,2762.7,8.89494]
[1724480969669,5.93196,2763.3,2762.7,12.5145]
[1724480970411,5.93196,2763.3,2762.8,3.61949]
[1724480970913,2.313,2763.3,2762.8,3.61949]
[1724480971077,2.313,2763.3,2762.8,6.27011312]
[1724480971617,9.763,2763.6,2763.0,3.61925]
[1724480971909,13.38147,2763.6,2763.0,3.61925]
[1724480972113,13.38147,2763.6,2763.0,4.89123193]
[1724480974110,3.61861,2763.5,2763.0,4.89123193]
[1724480974310,8.937301,2763.5,2762.8,4.89139193]
[1724480974516,7.2373,2763.5,2762.8,4.89139193]
[1724480975020,7.23733,2763.5,2762.9,3.61936]
[1724480975315,3.61873,2763.4,2762.9,3.61936]
[1724480977725,3.56887,2763.3,2762.8,4.89148193]
[1724480977893,3.56887,2763.3,2762.8,6.27012712]
[1724480979289,2.2693,2763.2,2762.8,6.27012712]
[1724480980214,3.56887,2763.3,2762.8,6.27012712]
[1724480982119,3.56887,2763.3,2762.8,4.99814519]
[1724480986631,2.2693,2763.4,2762.9,3.61938]
[1724480986791,2.2693,2763.4,2762.9,5.13025909]
[1724480987410,5.88803,2763.4,2762.9,5.13025909]
[1724480989195,3.61887,2763.3,2762.9,1.51087909]
[1724480989426,2.2693,2763.4,2762.8,3.61939]
[1724480989813,5.88803,2763.4,2762.8,3.61939]
[1724480994265,3.6194,2762.9,2762.5,2.366]
[1724480994565,3.6194,2762.9,2762.4,3.61996]
[1724480994773,2.2693,2763.0,2762.5,1.08780119]
[1724480995238,2.2693,2763.0,2762.5,5.97960312]
[1724480997424,2.2693,2763.0,2762.5,4.70762119]
[1724480997752,5.88855,2763.0,2762.5,1.08780119]
[1724480999138,2.2693,2763.0,2762.5,5.97960312]
[1724480999366,3.61907,2763.2,2762.6,0.95995431]
[1724480999367,3.61915,2763.1,2762.6,0.95995431]
[1724481001182,3.61915,2763.1,2762.6,4.57972431]
[1724481003679,3.61925,2763.0,2762.6,0.95995431]
[1724481004084,3.61953,2762.8,2762.5,1.08780119]
[1724481004275,3.61925,2763.0,2762.3,7.25813193]
[1724481004475,3.61948,2762.9,2762.3,5.98615]
[1724481005163,3.61948,2762.9,2762.3,2.366]
[1724481005164,6.03688,2762.9,2762.3,2.366]
[1724481005362,2.4174,2762.6,2761.9,9.70342]
[1724481005592,6.03727,2762.6,2762.0,4.77968325]
[1724481005862,3.61993,2762.5,2762.0,4.77968325]
[1724481006272,3.61993,2762.5,2762.0,6.05166518]
[1724481007267,3.61974,2762.7,2762.1,3.62037]
[1724481008387,7.23948,2762.7,2762.1,3.62037]
[1724481008572,3.61974,2762.7,2762.1,1.21342352]
[1724481009012,3.61985,2762.6,2762.1,1.21342352]
[1724481009612,3.61997,2762.5,2762.1,1.21342352]
[1724481009800,3.61985,2762.6,2762.1,1.21342352]
[1724481010002,3.61985,2762.6,2762.2,0.61059555]
[1724481010316,7.23971,2762.6,2762.2,0.61059555]
[1724481011011,3.61985,2762.6,2762.2,0.61059555]
[1724481012610,3.61993,2762.5,2762.2,0.61059555]
[1724481012797,3.61985,2762.6,2762.0,1.27198193]
[1724481012798,3.62011,2762.4,2762.0,1.27198193]
[1724481014400,3.62011,2762.4,2761.9,2.4622]
[1724481014401,7.24024,2762.4,2761.9,2.4622]
[1724481014638,3.62011,2762.4,2761.9,2.4622]
[1724481014845,3.62011,2762.4,2762.0,0.73549719]
[1724481021665,3.61984,2762.6,2762.0,4.35604719]
[1724481021834,3.61992,2762.5,2762.0,0.73549719]
[1724481022436,3.61992,2762.5,2762.0,2.00747912]
[1724481025745,3.62004,2762.4,2762.0,2.00747912]
[1724481025945,3.62004,2762.4,2762.1,0.80902891]
[1724481029193,3.6199,2762.5,2762.2,2.481]
[1724481029394,3.62005,2762.4,2762.2,2.481]
[1724481031334,3.62005,2762.4,2762.1,0.80902891]
[1724481032200,3.62005,2762.4,2762.0,2.481]
[1724481036221,7.24019,2762.4,2762.0,2.481]
[1724481036425,3.62005,2762.4,2762.0,2.481]
[1724481036640,3.62005,2762.4,2761.9,3.62058]
[1724481036936,6.06965,2762.4,2761.9,3.62058]
[1724481037131,6.06965,2762.4,2762.0,0.48925619]
[1724481038036,3.61985,2762.6,2762.1,5.94364]
[1724481038200,14.68919,2762.8,2762.2,1.27198193]
[1724481038534,14.68915,2762.8,2762.2,4.89220193]
[1724481038722,14.68915,2762.8,2762.3,1.08358419]
[1724481039241,3.61966,2762.7,2762.3,1.08358419]
[1724481040947,3.61979,2762.6,2762.3,1.08358419]
[1724481048025,7.96844777,2763.0,2762.4,6.06083]
[1724481048216,5.51866777,2763.1,2762.6,3.61976]
[1724481048421,3.61899,2763.2,2762.7,6.13275522]
[1724481048654,3.61883,2763.4,2762.9,3.61938]
[1724481048827,6.00761,2763.5,2762.9,7.23869]
[1724481049029,3.61861,2763.5,2763.0,2.4408]
[1724481051522,3.61861,2763.5,2763.0,6.06003]
[1724481051725,3.61861,2763.5,2763.1,0.96793]
[1724481053806,7.27959193,2763.5,2763.1,0.96793]
[1724481054078,3.6188,2763.4,2762.9,3.61927]
[1724481054923,3.6188,2763.4,2762.8,3.18127372]
[1724481055124,4.89089193,2763.3,2762.8,3.18127372]
[1724481055321,3.61908,2763.2,2762.8,0.74047372]
[1724481056929,4.89089193,2763.3,2762.8,0.74047372]
[1724481058761,3.61891,2763.3,2762.9,1.09796637]
[1724481063571,3.61891,2763.3,2762.8,0.74047372]
[1724481064009,4.89089193,2763.3,2762.8,0.74047372]
[1724481064426,3.61944,2762.9,2762.4,3.61996]
[1724481064708,1.27198193,2763.1,2762.4,3.61994]
[1724481064709,3.61933,2763.0,2762.4,3.61994]
[1724481066585,2.4838,2762.8,2762.4,3.61994]
[1724481066785,1.27198193,2762.9,2762.4,4.591117]
[1724481067223,6.10313,2763.0,2762.4,4.591117]
[1724481069716,9.72247,2763.0,2762.4,4.591117]
[1724481070416,6.10313,2763.0,2762.4,4.591117]
[1724481070912,9.72248,2763.0,2762.4,4.591117]
[1724481071413,6.10313,2763.0,2762.4,4.591117]
[1724481072779,3.61933,2763.0,2762.6,2.4716]
[1724481075112,3.61924,2763.1,2762.6,6.09136]
[1724481077621,3.61921,2763.1,2762.6,6.09136]
[1724481077827,3.61921,2763.1,2762.6,2.4716]
[1724481077828,7.23842,2763.1,2762.6,2.4716]
[1724481078226,3.61921,2763.1,2762.6,2.4716]
[1724481078480,3.61921,2763.1,2762.6,3.75040588]
[1724481078643,7.23844,2763.1,2762.6,3.75040588]
[1724481079782,3.61926,2763.0,2762.6,3.75040588]
[1724481080932,3.61926,2763.0,2762.6,2.4716]
[1724481082232,3.61921,2763.1,2762.6,2.4716]